[Event "Championnat du monde jeunes U12F"]
[Date "2024.11.26"]
[White "Venskaya, Nika"]
[Black "Li, Peishan"]
[WhiteElo "1871"]
[BlackElo "1729"]
[Round "11.5"]
[Result "1/2-1/2"]
[TimeControl "5400+30"]

1. d4 {[%clk 1:30:59]} 1... Nf6 {[%clk 1:30:56]} 2. Nf3 {[%clk 1:31:03]} 2... e6
{[%clk 1:31:21]} 3. g3 {[%clk 1:31:19]} 3... Be7 {[%clk 1:31:47]} 4. Bg2 {[%clk
1:31:37]} 4... O-O {[%clk 1:32:11]} 5. c4 {[%clk 1:30:38]} 5... d5 {[%clk
1:32:34]} 6. O-O {[%clk 1:31:00]} 6... b6 {[%clk 1:32:48]} 7. cxd5 {[%clk
1:31:03]} 7... exd5 {[%clk 1:33:12]} 8. Nc3 {[%clk 1:31:28]} 8... Bb7 {[%clk
1:33:34]} 9. Bf4 {[%clk 1:31:51]} 9... Nbd7 {[%clk 1:33:34]} 10. Rc1 {[%clk
1:31:31]} 10... c6 {[%clk 1:32:28]} 11. Qd3 {[%clk 0:54:05]} 11... Re8 {[%clk
1:31:31]} 12. Rfd1 {[%clk 0:39:18]} 12... a5 {[%clk 1:26:19]} 13. Qb1 {[%clk
0:31:44]} 13... Bb4 {[%clk 1:22:28]} 14. e3 {[%clk 0:25:53]} 14... Qe7 {[%clk
1:08:02]} 15. Bg5 {[%clk 0:25:18]} 15... h6 {[%clk 1:02:39]} 16. Bxf6 {[%clk
0:25:14]} 16... Qxf6 {[%clk 1:02:46]} 17. Ne2 {[%clk 0:22:46]} 17... Bd6 {[%clk
1:00:03]} 18. Nf4 {[%clk 0:18:43]} 18... Rad8 {[%clk 0:52:19]} 19. Nd3 {[%clk
0:15:20]} 19... c5 {[%clk 0:43:24]} 20. b3 {[%clk 0:14:36]} 20... Rb8 {[%clk
0:32:49]} 21. Nf4 {[%clk 0:12:58]} 21... Bxf4 {[%clk 0:28:32]} 22. exf4 {[%clk
0:12:07]} 22... Rbd8 {[%clk 0:24:57]} 23. Qd3 {[%clk 0:08:19]} 23... cxd4 {[%clk
0:23:12]} 24. Qb5 {[%clk 0:06:56]} 24... Qd6 {[%clk 0:16:58]} 25. Rxd4 {[%clk
0:03:58]} 25... Rc8 {[%clk 0:14:57]} 26. Rxc8 {[%clk 0:03:04]} 26... Rxc8 {[%clk
0:15:25]} 27. h4 {[%clk 0:03:08]} 27... Rc1+ {[%clk 0:14:35]} 28. Kh2 {[%clk
0:03:27]} 28... Rc2 {[%clk 0:14:52]} 29. Rd2 {[%clk 0:03:02]} 29... Rxd2 {[%clk
0:15:04]} 30. Nxd2 {[%clk 0:03:30]} 30... Nf6 {[%clk 0:15:07]} 31. Bf3 {[%clk
0:02:37]} 31... Qc7 {[%clk 0:14:42]} 32. Qd3 {[%clk 0:02:18]} 32... Qc5 {[%clk
0:14:48]} 33. Kg2 {[%clk 0:02:01]} 33... Bc8 {[%clk 0:14:51]} 34. Qe3 {[%clk
0:01:07]} 34... Bf5 {[%clk 0:14:33]} 35. Qxc5 {[%clk 0:00:46]} 35... bxc5 {[%clk
0:15:00]} 36. Kf1 {[%clk 0:00:53]} 36... Kf8 {[%clk 0:15:08]} 37. Ke2 {[%clk
0:01:01]} 37... Ke7 {[%clk 0:15:32]} 38. Bg2 {[%clk 0:00:40]} 38... Kd6 {[%clk
0:15:41]} 39. Bf3 {[%clk 0:00:45]} 39... h5 {[%clk 0:10:27]} 40. Kd1 {[%clk
0:00:53]} 40... Bd3 {[%clk 0:10:34]} 41. Be2 {[%clk 0:00:46]} 41... Bf5 {[%clk
0:09:21]} 42. Ke1 {[%clk 0:00:33]} 42... Bd7 {[%clk 0:09:13]} 43. Bd3 {[%clk
0:00:41]} 43... Bg4 {[%clk 0:08:46]} 44. Nf1 {[%clk 0:00:45]} 44... Bd7 {[%clk
0:07:15]} 45. Ne3 {[%clk 0:01:03]} 45... Ng4 {[%clk 0:07:14]} 46. Ke2 {[%clk
0:00:55]} 46... Bc8 {[%clk 0:04:38]} 47. Ke1 {[%clk 0:00:59]} 47... Nh2 {[%clk
0:03:06]} 48. Be2 {[%clk 0:01:07]} 48... Ng4 {[%clk 0:02:53]} 49. Bd3 {[%clk
0:01:18]} 49... Nh2 {[%clk 0:02:58]} 50. Be2 {[%clk 0:01:24]} 50... Ng4 {[%clk
0:03:23]} 51. Bf3 {[%clk 0:01:15]} 51... Nxe3 {[%clk 0:01:47]} 52. fxe3 {[%clk
0:01:41]} 52... Bg4 {[%clk 0:01:34]} 53. Bg2 {[%clk 0:01:57]} 53... Bf5 {[%clk
0:01:58]} 1/2-1/2

[Variant "Standard"]
[Site "Europe Echecs"]

[Event "Championnat du monde jeunes U12F"]
[Date "2024.11.26"]
[White "Tran Le Vy"]
[Black "Qiu, Laurie"]
[WhiteElo "1854"]
[BlackElo "1994"]
[Round "11.6"]
[Result "1-0"]
[TimeControl "5400+30"]

1. e4 {[%clk 1:30:57]} 1... c5 {[%clk 1:30:54]} 2. Nf3 {[%clk 1:31:20]} 2... Nc6
{[%clk 1:31:12]} 3. c3 {[%clk 1:31:43]} 3... Nf6 {[%clk 1:31:38]} 4. Bd3 {[%clk
1:32:01]} 4... d5 {[%clk 1:26:47]} 5. e5 {[%clk 1:32:22]} 5... Ne4 {[%clk
1:21:28]} 6. Qe2 {[%clk 1:26:10]} 6... Bf5 {[%clk 1:20:12]} 7. b3 {[%clk
1:25:23]} 7... Qc7 {[%clk 1:16:12]} 8. Bb5 Qa5 {[%clk 1:14:06]} 9. Bb2 {[%clk
1:07:37]} 9... Bg4 {[%clk 1:02:42]} 10. h4 {[%clk 1:05:21]} 10... c4 {[%clk
1:00:21]} 11. bxc4 {[%clk 1:05:11]} 11... a6 {[%clk 1:00:40]} 12. cxd5 {[%clk
1:04:49]} 12... Qxb5 {[%clk 1:00:15]} 13. Qxb5 {[%clk 1:05:09]} 13... axb5
{[%clk 1:00:39]} 14. dxc6 bxc6 {[%clk 0:59:45]} 15. d4 {[%clk 1:04:23]} 15...
Be6 {[%clk 0:57:20]} 16. a3 {[%clk 0:50:52]} 16... Bc4 {[%clk 0:54:08]} 17. Nbd2
{[%clk 0:34:11]} 17... Nxd2 {[%clk 0:53:45]} 18. Nxd2 {[%clk 0:34:24]} 18... Bd3
{[%clk 0:53:36]} 19. Rh3 {[%clk 0:34:22]} 19... Bf5 {[%clk 0:53:41]} 20. Re3
{[%clk 0:33:33]} 20... e6 {[%clk 0:52:03]} 21. c4 {[%clk 0:23:43]} 21... Be7
{[%clk 0:47:34]} 22. cxb5 {[%clk 0:22:10]} 22... cxb5 {[%clk 0:47:46]} 23. Rb3
{[%clk 0:22:19]} 23... Rb8 {[%clk 0:42:44]} 24. Rc1 {[%clk 0:21:48]} 24... O-O
{[%clk 0:41:40]} 25. Rc7 {[%clk 0:18:05]} 25... Rfe8 {[%clk 0:38:02]} 26. Ke2
{[%clk 0:10:39]} 26... h5 {[%clk 0:32:24]} 27. g3 {[%clk 0:10:28]} 27... b4
{[%clk 0:31:41]} 28. Bc1 {[%clk 0:08:15]} 28... Bf8 {[%clk 0:27:24]} 29. axb4
{[%clk 0:06:45]} 29... Bxb4 {[%clk 0:27:05]} 30. Nc4 {[%clk 0:06:45]} 30... Bc2
{[%clk 0:24:56]} 31. Rxb4 {[%clk 0:04:46]} 31... Rxb4 {[%clk 0:24:24]} 32. Nd6
{[%clk 0:05:12]} 32... Reb8 {[%clk 0:22:54]} 33. Rxc2 {[%clk 0:05:33]} 33...
Rxd4 {[%clk 0:23:16]} 34. Rc7 {[%clk 0:04:24]} 34... Rd5 {[%clk 0:21:08]} 35.
Nxf7 {[%clk 0:03:36]} 35... Rf8 {[%clk 0:21:22]} 36. Ng5 {[%clk 0:03:47]} 36...
Rxe5+ {[%clk 0:21:33]} 37. Kf1 {[%clk 0:04:13]} 37... Ref5 {[%clk 0:20:16]} 38.
Be3 {[%clk 0:04:29]} 38... R5f6 {[%clk 0:19:52]} 39. Re7 {[%clk 0:04:52]} 39...
Rd8 {[%clk 0:18:15]} 40. Nxe6 {[%clk 0:05:04]} 40... Rd1+ {[%clk 0:18:20]} 41.
Kg2 {[%clk 0:04:59]} 41... g6 {[%clk 0:18:20]} 42. Ng5 {[%clk 0:04:50]} 42...
Ra6 {[%clk 0:18:22]} 43. Re8+ {[%clk 0:04:23]} 43... Kg7 {[%clk 0:18:42]} 44.
Bf4 {[%clk 0:04:47]} 44... Ra5 {[%clk 0:18:23]} 45. Be5+ 1-0

[Variant "Standard"]
[Site "Europe Echecs"]

[Event "Championnat du monde jeunes U12F"]
[Date "2024.11.26"]
[White "Siskou, Evangelia"]
[Black "Mozolevskaya, Tatyana Nik"]
[WhiteElo "1884"]
[BlackElo "1775"]
[Round "11.7"]
[Result "0-1"]
[TimeControl "5400+30"]

1. c4 {[%clk 1:30:54]} 1... g6 {[%clk 1:30:57]} 2. g3 {[%clk 1:31:15]} 2... Bg7
{[%clk 1:31:23]} 3. Bg2 {[%clk 1:31:38]} 3... c5 {[%clk 1:31:49]} 4. Nc3 {[%clk
1:31:58]} 4... Nc6 {[%clk 1:32:16]} 5. e4 {[%clk 1:32:21]} 5... e6 {[%clk
1:32:11]} 6. Nge2 {[%clk 1:31:58]} 6... Nge7 {[%clk 1:32:35]} 7. O-O {[%clk
1:32:07]} 7... O-O {[%clk 1:32:59]} 8. d3 {[%clk 1:32:35]} 8... d6 {[%clk
1:31:29]} 9. Rb1 {[%clk 1:32:52]} 9... b6 {[%clk 1:31:04]} 10. a3 {[%clk
1:32:47]} 10... Bb7 {[%clk 1:31:26]} 11. b4 {[%clk 1:32:53]} 11... Nd4 {[%clk
1:31:31]} 12. Nxd4 {[%clk 1:32:35]} 12... cxd4 {[%clk 1:25:11]} 13. Ne2 {[%clk
1:32:38]} 13... Qd7 {[%clk 1:21:13]} 14. Qb3 {[%clk 1:27:22]} 14... Rac8 {[%clk
1:18:44]} 15. Bb2 {[%clk 1:27:13]} 15... e5 {[%clk 1:19:09]} 16. a4 {[%clk
1:24:08]} 16... Bc6 {[%clk 1:16:32]} 17. Ra1 {[%clk 1:23:21]} 17... a5 {[%clk
1:15:23]} 18. f4 {[%clk 1:21:20]} 18... Kh8 {[%clk 1:13:18]} 19. b5 {[%clk
1:12:41]} 19... Bb7 {[%clk 1:11:53]} 20. fxe5 {[%clk 1:09:11]} 20... dxe5 {[%clk
1:09:50]} 21. c5 {[%clk 1:06:25]} 21... bxc5 {[%clk 0:28:55]} 22. Rxf7 {[%clk
1:05:12]} 22... Rxf7 {[%clk 0:28:17]} 23. Qxf7 {[%clk 1:05:39]} 23... Rc7 {[%clk
0:26:23]} 24. Rf1 {[%clk 1:03:30]} 24... Nc8 {[%clk 0:26:01]} 25. Qxd7 {[%clk
0:56:43]} 25... Rxd7 {[%clk 0:26:30]} 26. Bh3 {[%clk 0:56:59]} 26... Rc7 {[%clk
0:26:56]} 27. Bxc8 {[%clk 0:56:03]} 27... Bxc8 {[%clk 0:27:25]} 28. Rc1 {[%clk
0:56:32]} 28... Bg4 {[%clk 0:24:12]} 29. Rc2 {[%clk 0:49:12]} 29... c4 {[%clk
0:16:42]} 30. h3 {[%clk 0:27:54]} 30... Be6 {[%clk 0:13:03]} 31. Ba3 {[%clk
0:14:57]} 31... c3 {[%clk 0:09:31]} 32. Nc1 {[%clk 0:15:21]} 32... Bxh3 {[%clk
0:09:46]} 33. Nb3 {[%clk 0:15:15]} 33... Ra7 {[%clk 0:06:10]} 34. Bc5 {[%clk
0:13:26]} 34... Ra8 {[%clk 0:06:09]} 35. b6 {[%clk 0:08:02]} 35... Bc8 {[%clk
0:04:54]} 36. Bd6 {[%clk 0:07:39]} 36... Ra6 {[%clk 0:03:49]} 37. Bc7 {[%clk
0:08:01]} 37... Kg8 {[%clk 0:04:04]} 38. Nc5 {[%clk 0:07:49]} 38... Ra8 {[%clk
0:04:32]} 39. Bd6 {[%clk 0:07:11]} 39... Kf7 {[%clk 0:04:23]} 40. Rf2+ {[%clk
0:06:54]} 40... Ke8 {[%clk 0:04:29]} 41. Kg2 {[%clk 0:04:10]} 41... Ra6 {[%clk
0:01:56]} 42. Bc7 {[%clk 0:02:33]} 42... Bh6 {[%clk 0:01:58]} 43. Nxa6 {[%clk
0:01:27]} 43... Bxa6 {[%clk 0:02:27]} 44. Bxe5 {[%clk 0:01:55]} 44... Be3 {[%clk
0:02:18]} 45. Ra2 {[%clk 0:01:00]} 45... Kd7 {[%clk 0:02:23]} 46. Kf3 {[%clk
0:01:07]} 46... Kc6 {[%clk 0:02:27]} 47. Ke2 {[%clk 0:01:36]} 47... g5 {[%clk
0:01:56]} 48. Bc7 {[%clk 0:01:32]} 48... Bc8 {[%clk 0:01:38]} 49. b7 {[%clk
0:00:55]} 49... Bg4+ {[%clk 0:02:00]} 50. Ke1 {[%clk 0:01:04]} 50... Kxc7 {[%clk
0:02:22]} 51. Rh2 {[%clk 0:01:08]} 51... h5 {[%clk 0:02:44]} 52. Ra2 {[%clk
0:01:12]} 52... Kxb7 {[%clk 0:03:10]} 53. Rc2 {[%clk 0:01:02]} 53... Kc6 {[%clk
0:03:31]} 54. Rh2 {[%clk 0:01:18]} 54... Kc5 {[%clk 0:03:44]} 55. Kf1 {[%clk
0:01:47]} 55... Bd2 {[%clk 0:04:00]} 0-1

[Variant "Standard"]
[Site "Europe Echecs"]

[Event "Championnat du monde jeunes U12F"]
[Date "2024.11.26"]
[White "Ahmed Mohamed, Zakaa"]
[Black "Bogomolnikova, Zlata"]
[WhiteElo "1866"]
[BlackElo "1628"]
[Round "11.8"]
[Result "1-0"]
[TimeControl "5400+30"]

1. e4 {[%clk 1:30:58]} 1... c5 {[%clk 1:30:55]} 2. Nc3 {[%clk 1:31:22]} 2... e6
{[%clk 1:31:13]} 3. f4 {[%clk 1:31:47]} 3... d5 {[%clk 1:31:31]} 4. Bb5+ {[%clk
1:29:40]} 4... Nc6 {[%clk 1:28:16]} 5. Bxc6+ {[%clk 1:29:43]} 5... bxc6 {[%clk
1:28:33]} 6. d3 {[%clk 1:25:45]} 6... Rb8 {[%clk 1:23:58]} 7. Nf3 {[%clk
1:25:07]} 7... Ba6 {[%clk 1:19:30]} 8. O-O {[%clk 1:23:32]} 8... Nf6 {[%clk
1:16:46]} 9. Re1 {[%clk 1:21:01]} 9... Be7 {[%clk 1:14:57]} 10. Ne5 {[%clk
1:17:46]} 10... Qb6 {[%clk 1:12:09]} 11. Na4 {[%clk 1:11:12]} 11... Qb7 {[%clk
1:10:53]} 12. Ng4 {[%clk 1:11:03]} 12... c4 {[%clk 1:08:31]} 13. Nxf6+ {[%clk
1:08:26]} 13... gxf6 {[%clk 1:04:45]} 14. f5 {[%clk 1:04:07]} 14... e5 {[%clk
1:04:20]} 15. d4 {[%clk 1:02:33]} 15... Rd8 {[%clk 1:00:31]} 16. dxe5 {[%clk
0:59:47]} 16... fxe5 {[%clk 0:59:46]} 17. exd5 {[%clk 0:56:32]} 17... Rxd5
{[%clk 0:59:42]} 18. Qg4 {[%clk 0:55:41]} 18... f6 {[%clk 0:53:49]} 19. Bh6
{[%clk 0:54:55]} 19... Bf8 {[%clk 0:50:10]} 20. Nc3 {[%clk 0:53:33]} 20... Rd4
{[%clk 0:47:37]} 21. Qxd4 {[%clk 0:53:33]} 21... Bxh6 {[%clk 0:47:37]} 22. Qd6
{[%clk 0:52:36]} 22... Rg8 {[%clk 0:39:56]} 23. Qe6+ {[%clk 0:52:52]} 23... Kf8
{[%clk 0:40:17]} 24. Qxf6+ {[%clk 0:53:16]} 24... Qf7 {[%clk 0:40:16]} 25. Qxh6+
{[%clk 0:53:40]} 25... Ke8 {[%clk 0:40:30]} 26. Qxc6+ {[%clk 0:53:55]} 26... Kf8
{[%clk 0:40:54]} 27. Qxa6 {[%clk 0:54:17]} 27... Rxg2+ {[%clk 0:41:08]} 28. Kxg2
{[%clk 0:54:36]} 28... Qg7+ {[%clk 0:41:35]} 29. Kh1 {[%clk 0:54:58]} 1-0

[Variant "Standard"]
[Site "Europe Echecs"]

[Event "Championnat du monde jeunes U12F"]
[Date "2024.11.26"]
[White "Bassari, Senem Gul"]
[Black "Ejsymont, Blanka"]
[WhiteElo "1778"]
[BlackElo "1945"]
[Round "11.9"]
[Result "1/2-1/2"]
[TimeControl "5400+30"]

1. e4 {[%clk 1:30:54]} 1... c5 2. Nf3 {[%clk 1:31:19]} 2... d6 3. d4 {[%clk
1:31:44]} 3... cxd4 {[%clk 1:31:46]} 4. Nxd4 {[%clk 1:32:09]} 4... Nf6 {[%clk
1:32:11]} 5. Nc3 {[%clk 1:32:32]} 5... a6 {[%clk 1:32:37]} 6. Rg1 {[%clk
1:32:54]} 6... e5 {[%clk 1:32:44]} 7. Nb3 {[%clk 1:33:19]} 7... h5 {[%clk
1:32:48]} 8. h3 {[%clk 1:33:21]} 8... Be6 {[%clk 1:32:45]} 9. g4 {[%clk
1:33:01]} 9... hxg4 {[%clk 1:32:34]} 10. hxg4 {[%clk 1:33:21]} 10... d5 {[%clk
1:32:10]} 11. exd5 {[%clk 1:32:58]} 11... Nxd5 {[%clk 1:32:10]} 12. Nxd5 {[%clk
1:32:45]} 12... Qxd5 {[%clk 1:31:59]} 13. Qe2 {[%clk 1:30:30]} 13... Nc6 {[%clk
1:22:59]} 14. c3 {[%clk 1:25:45]} 14... O-O-O {[%clk 1:07:58]} 15. Bd2 {[%clk
1:24:54]} 15... Be7 {[%clk 1:03:34]} 16. Be3 {[%clk 1:04:20]} 16... Rh4 {[%clk
0:50:35]} 17. Nd2 {[%clk 0:42:24]} 17... e4 {[%clk 0:43:59]} 18. Nc4 {[%clk
0:19:43]} 18... Qd3 {[%clk 0:24:41]} 19. Qd2 {[%clk 0:09:01]} 19... Qxd2+ {[%clk
0:23:03]} 20. Nxd2 {[%clk 0:08:37]} 20... Ne5 {[%clk 0:19:06]} 21. Bd4 {[%clk
0:04:53]} 21... Bg5 {[%clk 0:15:10]} 22. Be2 {[%clk 0:01:17]} 22... Bxd2+ {[%clk
0:08:11]} 23. Kxd2 {[%clk 0:01:45]} 23... Nc6 {[%clk 0:02:22]} 24. Ke3 {[%clk
0:01:40]} 24... Rh3+ {[%clk 0:01:02]} 25. Rg3 {[%clk 0:01:55]} 25... Rxg3+
{[%clk 0:00:42]} 26. fxg3 {[%clk 0:02:24]} 26... Nxd4 {[%clk 0:00:43]} 27. cxd4
{[%clk 0:02:52]} 27... Bd5 {[%clk 0:00:41]} 28. Bf1 {[%clk 0:02:07]} 28... Rh8
{[%clk 0:00:46]} 29. Bg2 {[%clk 0:01:18]} 29... Rh2 {[%clk 0:00:38]} 30. Rg1
{[%clk 0:01:35]} 30... Kd7 {[%clk 0:00:39]} 31. a3 {[%clk 0:01:38]} 31... Kd6
{[%clk 0:00:43]} 32. b4 {[%clk 0:01:41]} 32... b5 {[%clk 0:00:37]} 33. Kf4
{[%clk 0:00:38]} 33... Rh6 {[%clk 0:00:37]} 34. Ke3 {[%clk 0:00:44]} 34... Rg6
{[%clk 0:00:37]} 35. Bh3 {[%clk 0:00:42]} 35... Rh6 {[%clk 0:00:38]} 36. Bg2
{[%clk 0:01:08]} 36... Rg6 {[%clk 0:00:37]} 37. Bh3 {[%clk 0:01:29]} 37... Rh6
{[%clk 0:00:40]} 38. Bg2 1/2-1/2

[Variant "Standard"]
[Site "Europe Echecs"]

[Event "Championnat du monde jeunes U12F"]
[Date "2024.11.26"]
[White "Harutyunyan, Gabriela"]
[Black "Pavithra R V"]
[WhiteElo "1730"]
[BlackElo "1854"]
[Round "11.10"]
[Result "1-0"]
[TimeControl "5400+30"]

1. e4 {[%clk 1:30:29]} 1... c5 {[%clk 1:30:49]} 2. Nc3 {[%clk 1:30:49]} 2... Nc6
{[%clk 1:31:08]} 3. Bb5 {[%clk 1:31:13]} 3... g6 {[%clk 1:31:20]} 4. Bxc6 {[%clk
1:31:16]} 4... dxc6 {[%clk 1:31:39]} 5. d3 {[%clk 1:31:34]} 5... Bg7 {[%clk
1:31:59]} 6. Be3 {[%clk 1:31:48]} 6... b6 {[%clk 1:32:03]} 7. Qd2 {[%clk
1:32:06]} 7... e5 {[%clk 1:28:22]} 8. Nge2 {[%clk 1:29:21]} 8... Qc7 {[%clk
1:26:57]} 9. a4 {[%clk 1:25:03]} 9... a5 {[%clk 1:26:01]} 10. f4 {[%clk
1:22:43]} 10... f6 {[%clk 1:19:39]} 11. O-O {[%clk 1:10:44]} 11... Be6 {[%clk
1:18:49]} 12. Rad1 {[%clk 0:51:00]} 12... Ne7 {[%clk 1:13:25]} 13. Qe1 {[%clk
0:46:20]} 13... O-O-O {[%clk 1:09:45]} 14. Nb1 {[%clk 0:42:00]} 14... h6 {[%clk
1:04:15]} 15. Qf2 {[%clk 0:42:14]} 15... g5 {[%clk 1:03:15]} 16. f5 {[%clk
0:42:34]} 16... Bf7 {[%clk 1:03:22]} 17. b4 {[%clk 0:42:23]} 17... axb4 {[%clk
1:02:37]} 18. a5 {[%clk 0:42:46]} 18... bxa5 {[%clk 1:02:11]} 19. Bxc5 {[%clk
0:43:01]} 19... Kb7 {[%clk 1:02:08]} 20. Nd2 {[%clk 0:40:37]} 20... Nc8 {[%clk
1:01:34]} 21. Rb1 {[%clk 0:39:37]} 21... Bf8 {[%clk 0:59:50]} 22. Be3 {[%clk
0:36:08]} 22... c5 {[%clk 0:59:22]} 23. Ra1 {[%clk 0:33:54]} 23... Kb6 {[%clk
0:35:54]} 24. Nc1 {[%clk 0:33:42]} 24... Nd6 {[%clk 0:35:56]} 25. Ncb3 {[%clk
0:28:57]} 25... Nb7 {[%clk 0:36:23]} 26. Rfb1 {[%clk 0:27:51]} 26... Ka7 {[%clk
0:33:57]} 27. Nxa5 {[%clk 0:22:35]} 27... Nxa5 {[%clk 0:33:11]} 28. Rxb4 {[%clk
0:22:51]} 28... Ka6 {[%clk 0:23:59]} 29. Rba4 {[%clk 0:23:07]} 29... Rc8 {[%clk
0:15:31]} 30. Qe1 {[%clk 0:22:44]} 30... Be8 {[%clk 0:09:35]} 31. Rxa5+ {[%clk
0:23:05]} 31... Qxa5 {[%clk 0:09:59]} 32. Rxa5+ {[%clk 0:23:25]} 32... Kxa5
{[%clk 0:10:26]} 33. Nc4+ {[%clk 0:23:40]} 33... Kb5 {[%clk 0:10:49]} 34. Qa5+
{[%clk 0:24:03]} 34... Kc6 {[%clk 0:11:15]} 35. Qb6+ {[%clk 0:23:52]} 35... Kd7
{[%clk 0:11:43]} 36. Qe6+ Kd8 {[%clk 0:12:07]} 37. Bd2 {[%clk 0:24:11]} 37...
Bd7 {[%clk 0:12:24]} 38. Ba5+ {[%clk 0:24:34]} 38... Rc7 {[%clk 0:12:50]} 39.
Qxf6+ {[%clk 0:24:57]} 39... Ke8 {[%clk 0:13:14]} 40. Qxe5+ {[%clk 0:25:17]}
40... Kd8 41. Bxc7+ {[%clk 0:25:15]} 41... Kc8 {[%clk 0:14:04]} 42. Ba5 {[%clk
0:25:37]} 42... Kb7 {[%clk 0:14:29]} 43. Qc7+ {[%clk 0:26:00]} 43... Ka8 {[%clk
0:14:56]} 44. Nb6# {[%clk 0:26:22]} 1-0

[Variant "Standard"]
[Site "Europe Echecs"]

[Event "Championnat du monde jeunes U12F"]
[Date "2024.11.26"]
[White "Abak, Tuana"]
[Black "Ivaschenko, Anna"]
[WhiteElo "1806"]
[BlackElo "1732"]
[Round "11.11"]
[Result "1/2-1/2"]
[TimeControl "5400+30"]

1. e4 {[%clk 1:30:57]} 1... e6 {[%clk 1:30:57]} 2. d3 {[%clk 1:31:22]} 2... d5
{[%clk 1:31:22]} 3. Nd2 {[%clk 1:31:48]} 3... Nf6 {[%clk 1:31:39]} 4. Ngf3
{[%clk 1:32:13]} 4... Nc6 {[%clk 1:31:57]} 5. g3 {[%clk 1:32:31]} 5... dxe4
{[%clk 1:32:19]} 6. dxe4 {[%clk 1:32:56]} 6... Bc5 {[%clk 1:32:45]} 7. Bg2
{[%clk 1:33:03]} 7... O-O {[%clk 1:33:01]} 8. O-O {[%clk 1:33:29]} 8... e5
{[%clk 1:33:25]} 9. c3 {[%clk 1:33:49]} 9... a5 {[%clk 1:33:45]} 10. Qc2 {[%clk
1:34:13]} 10... Qe7 {[%clk 1:34:01]} 11. Nc4 {[%clk 1:28:05]} 11... Rd8 {[%clk
1:34:14]} 12. Be3 {[%clk 1:25:42]} 12... b6 {[%clk 1:19:14]} 13. Rfe1 {[%clk
1:08:34]} 13... Ba6 {[%clk 1:12:47]} 14. Bf1 {[%clk 1:09:00]} 14... Ng4 {[%clk
1:07:11]} 15. h3 {[%clk 0:58:08]} 15... Nxe3 {[%clk 0:59:52]} 16. Nxe3 {[%clk
0:58:34]} 16... Bxe3 {[%clk 0:52:07]} 17. fxe3 {[%clk 0:58:10]} 17... Bxf1
{[%clk 0:50:00]} 18. Rxf1 {[%clk 0:58:37]} 18... Rd6 {[%clk 0:43:53]} 19. Rf2
{[%clk 0:47:34]} 19... Rad8 {[%clk 0:40:15]} 20. Raf1 {[%clk 0:44:45]} 20... f6
{[%clk 0:38:09]} 21. Nh4 {[%clk 0:44:20]} 21... Qe6 {[%clk 0:29:21]} 22. Nf5
{[%clk 0:33:57]} 22... Rd3 {[%clk 0:26:38]} 23. Qe2 {[%clk 0:33:50]} 23... Qd7
{[%clk 0:25:11]} 24. Kh1 {[%clk 0:29:24]} 24... Rd1 {[%clk 0:19:04]} 25. Qc4+
{[%clk 0:28:09]} 25... Kh8 {[%clk 0:19:06]} 26. Kg2 {[%clk 0:28:01]} 26... Rxf1
{[%clk 0:19:14]} 27. Rxf1 {[%clk 0:28:16]} 27... Ne7 {[%clk 0:17:49]} 28. Rf2
{[%clk 0:26:49]} 28... Qc6 {[%clk 0:15:07]} 29. Qxc6 {[%clk 0:27:04]} 29... Nxc6
{[%clk 0:15:35]} 30. Nh4 {[%clk 0:23:17]} 30... Kg8 {[%clk 0:14:13]} 31. Nf3
{[%clk 0:23:42]} 31... Rd3 {[%clk 0:12:36]} 32. Re2 {[%clk 0:23:58]} 32... Kf7
{[%clk 0:12:08]} 33. Kf2 {[%clk 0:22:32]} 33... Ke6 {[%clk 0:11:49]} 34. Rd2
{[%clk 0:22:46]} 34... Rd8 {[%clk 0:10:54]} 35. Ke2 {[%clk 0:22:48]} 35... Rh8
{[%clk 0:09:25]} 36. Nh4 {[%clk 0:18:35]} 36... Ne7 {[%clk 0:08:56]} 37. Nf5
{[%clk 0:17:52]} 37... g6 {[%clk 0:08:11]} 38. Nxe7 {[%clk 0:18:14]} 38... Kxe7
{[%clk 0:08:39]} 39. a4 {[%clk 0:17:56]} 39... Ra8 {[%clk 0:06:53]} 40. Kd1
{[%clk 0:16:08]} 40... Rd8 {[%clk 0:05:12]} 41. Rxd8 {[%clk 0:11:36]} 41... Kxd8
{[%clk 0:05:41]} 42. Kd2 {[%clk 0:11:55]} 42... Kd7 {[%clk 0:05:33]} 43. Kd3
{[%clk 0:11:55]} 43... Kd6 {[%clk 0:04:00]} 44. Kc4 {[%clk 0:09:49]} 44... Kc6
{[%clk 0:04:05]} 45. b4 {[%clk 0:10:10]} 45... h6 {[%clk 0:03:32]} 46. g4 {[%clk
0:09:26]} 46... g5 {[%clk 0:03:32]} 47. Kb3 {[%clk 0:09:47]} 47... Kd6 {[%clk
0:03:34]} 48. c4 {[%clk 0:08:28]} 48... c5 {[%clk 0:01:26]} 49. bxa5 {[%clk
0:08:53]} 49... bxa5 {[%clk 0:01:52]} 50. Kc2 {[%clk 0:09:18]} 50... Ke6 {[%clk
0:01:53]} 51. Kd3 {[%clk 0:09:39]} 51... Kd6 {[%clk 0:02:17]} 52. Ke2 {[%clk
0:10:04]} 52... Ke6 {[%clk 0:02:41]} 1/2-1/2

[Variant "Standard"]
[Site "Europe Echecs"]